Cogmind - Beta 14 @@@ ROGUE MODE // 2024.12.01 @ 14:51:20 Player: russur Result: Self-destructed Performance ------------- Evolutions (2) 1000 Regions Visited (3) 600 Robots Destroyed (28) 140 Value Destroyed (562) 562 Prototype IDs (0) 0 Alien Tech Used (0) 0 Bonus (0) 0 TOTAL SCORE: 2302 Bonus ------- None Cogmind --------- Core Integrity 364/550 Matter 264/300 Energy 160/160 System Corruption 0% Temperature Cool (0) Movement Walking (120) Location -8/Materials Parts ------- > --- POWER (2) -------- Light Nuclear Core > --- PROPULSION (4) --- Aluminum Leg Aluminum Leg Aluminum Leg > --- UTILITY (3) ------ Improved Targeting Computer ECM Suite Hacking Suite > --- WEAPON (2) ------- High-powered Shotgun > --- INVENTORY (5) ---- Small Storage Unit Tractor Beam Heavy Particle Gun Autogun Grenade Launcher Peak State ------------ > --- POWER ------------ Ion Engine Light Nuclear Core > --- PROPULSION ------- Aluminum Leg Aluminum Leg Aluminum Leg Aluminum Leg > --- UTILITY ---------- Improved Targeting Computer ECM Suite Hacking Suite > --- WEAPON ----------- Beam Cannon High-powered Shotgun > --- INVENTORY -------- Small Storage Unit Tractor Beam Heavy Particle Gun Autogun Grenade Launcher [Rating: 18] Favorites ----------- Power Ion Engine Engine Ion Engine Power Core Light Nuclear Core Propulsion Aluminum Leg Leg Aluminum Leg Utility Seismic Detector Device Seismic Detector Storage Small Storage Unit Processor Improved Targeting Computer Hackware Hacking Suite Weapon Beam Cannon Energy Gun Small Laser Energy Cannon Beam Cannon Ballistic Gun Light Assault Rifle Build | -11 -10 -9 -8 ------- Run | Yrd Mat Mat Mat Slots Evolved 4 | . . 2 2 Power 1 | . . . 1 Propulsion 2 | . . 2 . Utility 1 | . . . 1 Weapon . | . . . . Parts Attached 18 | 7 2 2 7 Power 2 | 1 . . 1 Engine 1 | 1 . . . Core 1 | . . . 1 Reactor . | . . . . Propulsion 5 | 2 . 1 2 Treads . | . . . . Leg 5 | 2 . 1 2 Wheel . | . . . . Hover . | . . . . Flight . | . . . . Utility 6 | 2 1 . 3 Device 3 | 1 1 . 1 Storage 1 | 1 . . . Processor 1 | . . . 1 Hackware 1 | . . . 1 Protection . | . . . . Artifact . | . . . . Weapon 5 | 2 1 1 1 Energy Gun 1 | 1 . . . Energy Cannon 1 | . 1 . . Ballistic Gun 3 | 1 . 1 1 Ballistic Cannon . | . . . . Launcher . | . . . . Special Weapon . | . . . . Impact Weapon . | . . . . Slashing Weapon . | . . . . Piercing Weapon . | . . . . Special Melee Weapon . | . . . . Unidentified Prototypes . | . . . . Parts Lost 3 | . . . 3 Power 1 | . . . 1 Propulsion 1 | . . . 1 Utility . | . . . . Weapon 1 | . . . 1 Highest Loss Streak 3 | . . . 3 To Critical Strikes . | . . . . Average Slot Usage (%) 90 | . 100 88 80 Engine 11 | . 14 11 8 Leg 29 | . 28 33 28 Device 18 | . 20 22 12 Storage 2 | . 7 . . Processor 1 | . . . 5 Hackware 2 | . . . 7 Energy Gun 5 | . 12 . . Energy Cannon 6 | . 1 11 8 Ballistic Gun 11 | . 14 11 9 Peak Build Rating 18 | 7 9 11 18 Average Rating 10 | 5 7 10 14 On Entrance 6 | . 7 9 11 Naked Turns . | . . . . Heaviest Build 18 | 13 13 13 18 Greatest Support 40 | 20 20 30 40 Greatest Overweight (x) . | . . . . Average Overweight (x) . | . . . . Largest Inventory Capacity 8 | 8 8 5 5 Average Capacity 5 | 7 6 5 5 Most Carried 5 | . 5 4 5 Average Carried 2 | . 1 3 4 Final Capacity 8 | 8 5 5 5 Final Carried 5 | . 4 4 5 Class Distribution -------------------- 96% | Mutant 3% | Scavenger-Mutant Dominant Class ---------------- Mutant | -10/Materials Mutant | -9/Materials Mutant | -8/Materials Resources | -11 -10 -9 -8 ----------- Run | Yrd Mat Mat Mat Matter Collected 532 | 303 56 70 103 Remotely . | . . . . Salvage Created 801 | 221 306 145 129 Parts 67 | 19 23 20 5 Haulers Intercepted . | . . . . Recyclers Shooed 1 | . 1 . . Parts Field Recycled . | . . . . Retrieved Matter . | . . . . Parts Self-Destructed . | . . . . Prevented . | . . . . Kills | -11 -10 -9 -8 ------- Run | Yrd Mat Mat Mat Combat Hostiles Destroyed 15 | . 8 4 3 Guns 14 | . 8 3 3 Cannons 1 | . . 1 . Classes Destroyed 9 | 3 3 2 1 Worker 4 | 2 2 . . Tunneler 4 | 4 . . . Recycler 1 | 1 . . . Operator 1 | . . 1 . Watcher 3 | . 1 2 . Swarmer 6 | . 3 3 . Grunt 7 | . 5 . 2 Sentry 1 | . . 1 . Hunter 1 | . . . 1 Best Kill Streak 5 | 5 5 4 2 Combat Bots Only 4 | . 4 2 2 Max Kills in Single Turn 1 | 1 1 1 1 Gunslinging . | . . . . Exploded . | . . . . Melee . | . . . . Uniques/NPCs Destroyed . | . . . . Combat | -11 -10 -9 -8 -------- Run | Yrd Mat Mat Mat Hostile Shots Fired 79 | . 34 10 35 Missed 27 | . 12 3 12 Damage Taken 947 | . 302 62 583 Core 264 | . 78 . 186 Absorbed by Shields . | . . . . Core Remaining (%) 89 | 100 68 100 . Volleys Fired 104 | 33 36 16 19 Largest 2 | 2 2 2 2 Hottest 85 | 60 60 83 85 Shots Fired 199 | 65 70 32 32 Gun 170 | 65 70 16 19 Cannon 29 | . . 16 13 Launcher . | . . . . Special . | . . . . Kinetic 104 | 33 36 16 19 Thermal 95 | 32 34 16 13 Explosive . | . . . . Electromagnetic . | . . . . Robot Hit Streak 15 | 6 15 4 5 Robot Miss Streak 7 | 3 4 2 7 Penetration Max . | . . . . Secondary Targets 2 | . 2 . . Max Gunslinging Chain 1 | . 1 . . Shots Hit Robots 129 | 42 47 17 23 Core Hits 53 | 14 22 8 9 Critical Kills . | . . . . Critical Parts Destroyed 1 | 1 . . . Critical Strikes 1 | 1 . . . Destroy 1 | 1 . . . Melee Attacks . | . . . . Impact . | . . . . Slashing . | . . . . Piercing . | . . . . Sneak Attacks . | . . . . Combat Hostiles . | . . . . Follow-up Attacks . | . . . . Damage Inflicted 1505 | 382 462 263 398 Guns 1241 | 382 462 123 274 Cannons 264 | . . 140 124 Explosions . | . . . . Melee . | . . . . Ramming . | . . . . Kinetic 799 | 167 235 123 274 Thermal 706 | 215 227 140 124 Explosive . | . . . . Electromagnetic . | . . . . Impact . | . . . . Slashing . | . . . . Piercing . | . . . . Highest Corruption 1 | . 1 . . Average Corruption 1 | . 1 . . Corruption Purged . | . . . . Corruption Blocked . | . . . . Overload Shots . | . . . . Overflow Damage . | . . . . Projectiles . | . . . . Explosions . | . . . . Melee . | . . . . Knockbacks . | . . . . Impact . | . . . . Kinetic . | . . . . Secondary . | . . . . Self-Inflicted Damage . | . . . . Shots . | . . . . Rammed . | . . . . Targets Rammed . | . . . . Kicked . | . . . . Crushed . | . . . . Highest Temperature 140 | 140 97 17 78 Average Temperature 46 | 71 39 6 26 Received Heat Transfer 231 | . 114 9 108 Siege Activations . | . . . . Robots Corrupted . | . . . . Combat Hostiles . | . . . . Parts Fried . | . . . . Impact Corruptions . | . . . . Robots Melted . | . . . . Combat Hostiles . | . . . . Parts Melted 1 | 1 . . . Heat Transferred 1580 | 500 525 296 259 Parts Sabotaged . | . . . . Parts Stolen . | . . . . Parts Stripped . | . . . . Power Chain Reactions . | . . . . Alert | -11 -10 -9 -8 ------- Run | Yrd Mat Mat Mat Peak Influence 311 | 35 289 311 241 Initial 131 | . 22 121 131 Average 146 | 11 166 195 160 Maximum Alert Level 1 | . 1 1 1 Low Security (%) 73 | 100 60 66 78 Level 1 26 | . 39 33 21 Level 2 . | . . . . Level 3 . | . . . . Level 4 . | . . . . Level 5 . | . . . . High Security . | . . . . Max Security . | . . . . Squads Dispatched 2 | . . . 2 Investigation 1 | . . . 1 Extermination . | . . . . Reinforcement 1 | . . . 1 Assault . | . . . . Garrison . | . . . . Intercept . | . . . . Searches Triggered . | . . . . Construction Impeded . | . . . . Haulers Reinforced . | . . . . Active Scanning Responses . | . . . . Cargo Convoy Interrupts . | . . . . Stealth | -11 -10 -9 -8 --------- Run | Yrd Mat Mat Mat Distress Signals 3 | . 1 2 . Communications Jammed . | . . . . Distress Signals . | . . . . Times Spotted 35 | . 12 10 13 Peak Tracking Total 3 | . 3 3 2 Tactical Retreats 4 | . 1 1 2 Traps | -11 -10 -9 -8 ------- Run | Yrd Mat Mat Mat Traps Triggered 2 | . 2 . . Indirectly . | . . . . Trap Hack Attempts . | . . . . Triggered . | . . . . Disarmed . | . . . . Reprogrammed . | . . . . Reused . | . . . . Traps Extracted . | . . . . Installed . | . . . . Triggered . | . . . . Machines | -11 -10 -9 -8 ---------- Run | Yrd Mat Mat Mat Machines Disabled 1 | . . . 1 Max in Single Turn 1 | . . . 1 Machines Repaired . | . . . . Machines Dismantled . | . . . . Machines Sabotaged . | . . . . Overloaded Fab Kills . | . . . . Hacking | -11 -10 -9 -8 --------- Run | Yrd Mat Mat Mat Machines Accessed 6 | . 2 2 2 Terminals 5 | . 2 2 1 Fabricators . | . . . . Repair Stations . | . . . . Recycling Units . | . . . . Scanalyzers . | . . . . Garrison Access 1 | . . . 1 Total Hacks 11 | . 3 2 6 Successful 6 | . 1 2 3 Failed 5 | . 2 . 3 Catastrophic 2 | . 1 . 1 Database Lockouts . | . . . . Manual 4 | . . . 4 Terminals 10 | . 3 2 5 Fabricators . | . . . . Repair Stations . | . . . . Recycling Units . | . . . . Scanalyzers . | . . . . Garrison Access 1 | . . . 1 Terminal Hacks 5 | . 1 2 2 Record 2 | . . . 2 Robot Analysis 1 | . . 1 . Alert Level 1 | . 1 . . Transport Status 1 | . . 1 . Fabricator Hacks . | . . . . Repair Station Hacks . | . . . . Recycling Unit Hacks . | . . . . Scanalyzer . | . . . . Garrison Access Hacks 1 | . . . 1 Unlock Access 1 | . . . 1 Unauthorized Hacks . | . . . . Terminals . | . . . . Fabricators . | . . . . Repair Stations . | . . . . Recycling Units . | . . . . Scanalyzers . | . . . . Garrison Access . | . . . . Data Cores Recovered 1 | . . 1 . Used . | . . . . Hacking Detections 2 | . 1 . 1 Full Trace Events 1 | . . . 1 Feedback Events . | . . . . Feedback Blocked . | . . . . Robot Schematics Acquired . | . . . . Robots Built . | . . . . Authchips . | . . . . Time . | . . . . Total Robot Build Rating . | . . . . Part Schematics Acquired . | . . . . Parts Built . | . . . . Authchips . | . . . . Time . | . . . . Total Part Build Rating . | . . . . Parts Repaired . | . . . . Time . | . . . . Parts Recycled . | . . . . Recycled Matter . | . . . . Retrieved Matter . | . . . . Retrieved Components . | . . . . Parts Scanalyzed . | . . . . Part Schematics Acquired . | . . . . Parts Damaged . | . . . . Bothacking | -11 -10 -9 -8 ------------ Run | Yrd Mat Mat Mat Used RIF Installer . | . . . . Robots Hacked . | . . . . Non-combat . | . . . . Combat . | . . . . Robot Hacks Applied . | . . . . Relay Couplers Released . | . . . . Fabnet Peak Effective % . | . . . . Robots Rewired . | . . . . Allies Hacked . | . . . . Hacks Repelled . | . . . . Allies | -11 -10 -9 -8 -------- Run | Yrd Mat Mat Mat Total Allies . | . . . . Largest Group . | . . . . Highest-Rated Group . | . . . . Highest-Rated Ally . | . . . . Total Orders . | . . . . Ally Attacks . | . . . . Total Damage . | . . . . Kills . | . . . . Allies Corrupted . | . . . . Allies Melted . | . . . . Intel | -11 -10 -9 -8 ------- Run | Yrd Mat Mat Mat Robot Analysis Total 1 | . . 1 . Derelict Logs Recovered . | . . . . Drone Launches . | . . . . Drone Recoveries . | . . . . Exploration | -11 -10 -9 -8 ------------- Run | Yrd Mat Mat Mat Turns Passed 1091 | 173 373 225 320 Spaces Moved 582 | 61 188 132 201 Core 2 | 2 . . . Treads . | . . . . Legs 580 | 59 188 132 201 Wheels . | . . . . Hover . | . . . . Flight . | . . . . Fastest Speed 50 | 50 120 120 120 Average Speed 119 | 117 120 120 120 Slowest Speed 120 | 120 120 120 120 Overloaded Moves . | . . . . Propulsion Burnouts . | . . . . Robots Hopped . | . . . . Cave-ins Triggered . | . . . . Exploration Rate (%) 17 | 4 33 12 21 Regions Visited 3 Branch Regions . Pre-discovered Areas . | . . . . Known Exits Taken . | . . . . Unknown Exits Taken 3 | 1 1 1 . Scrap Searched . | . . . . Spaces Dug . | . . . . Terrain Destroyed . | . . . . Melee . | . . . . Projectile . | . . . . AOE . | . . . . Terrain Rammed . | . . . . Walls Destroyed . | . . . . Machines Disabled . | . . . . Actions | -11 -10 -9 -8 --------- Run | Yrd Mat Mat Mat Total 789 | 100 273 169 247 Wait 77 | . 42 20 15 Move 579 | 60 187 131 201 Hop . | . . . . Pick Up 5 | . 4 . 1 Fast Attach 13 | 7 1 . 5 Attach 2 | . 1 1 . Detach 1 | . 1 . . Swap 3 | . . 1 2 Drop 5 | . 1 . 4 Fire 104 | 33 36 16 19 Melee . | . . . . Ram . | . . . . Kick . | . . . . Crush . | . . . . Escape Stasis . | . . . . Rewire . | . . . . Trap . | . . . . Miscellaneous . | . . . . Route ------- -11/Scrapyard -10/Materials -9/Materials -8/Materials (discovered 1 exit: Gar) History --------- Turn | Location | Event 17 | -11/Scrapyard | Discovered new exit (range 16) 174 | -11/Scrapyard | Entered Materials 310 | -10/Materials | Build established: Mutant 535 | -10/Materials | Discovered new exit (range 10) 547 | -10/Materials | Entered another Materials area 547 | -9/Materials | Evolved 2 slots: Propulsion x2 750 | -9/Materials | Discovered new exit (range 10) 772 | -9/Materials | Entered another Materials area 772 | -8/Materials | Evolved 2 slots: Power x1, Utility x1 925 | -8/Materials | Identified exit to Garrison 1092 | -8/Materials | Self-destructed Last Messages --------------- 01039_ Acquired 31 matter. 01041_ Acquired 20 matter. 01044_ Acquired Aluminum Leg. 01047_ Dropped Aluminum Leg. 01050_ Acquired Lgt. Nuclear Core. 01052_ K-01 Serf collects debris. 01052_ Critical hit (Burn: +37). 01055_ K-01 Serf collects debris. 01071_ Ion Engine destroyed. 01077_ Beam Cannon destroyed. 01077_ Knocked back. 01079_ H-61 Shepherd calls for reinforcements. 01079_ ALERT: Hostile activity reported, dispatching reinforcements to area. 01079_ Slug penetrates K-01 Serf. 01079_ K-01 Serf destroyed. 01083_ Knocked back. 01088_ Aluminum Leg destroyed. 01088_ Knocked back. 01091_ Acquired 3 matter. Map ----- +----------------------------------------------------+ | ?????????????????????????????????????????????????? | | ?????????????????????????????????????????????????? | | ?????????????????????????????????????????????????? | | ?????????????????????????????????????????????????? | | ?????????????????????????????????????????????????? | | ?????????????????????????????????????????????????? | | ?????????????????????????????????????????????????? | | ?????????????????????????????????????????????????? | | ?????????????????????????????????????????????????? | | ??????????????????????? ???????????????????????? | | ??????????????????????#u ???????????????????????? | | ??????????????????????# ??????????????? ???????? | | ??????????????????????#h ?????????????# ??????? | | ??????????????????????+ ?????????????# ??????? | | ??????????????????????# #????????????# ??????? | | ??????????????????????# #????????????# #?????? | | ?????????????????????## ##???????????# #?????? | | ????????????????????## #???????????# #?????? | | ????????????????????? #???????????+ +?????? | | ????????????????????? #???????????# #?????? | | ?????????????????????? #???????????# #?????? | | ??????????????????????? H #???????????# ####### | | ??????????????????????## #???????????# | | ??????????????????????#; ##??????????# | | ???????????????????????# ;#??????????# | | ???????????????????????# @%#???????????# = | | ???????????????????????#% #???????????# | | ???????????????????????# #???????????# | | ???????????????????????# #???????????# == | | ???????????????????????# ;#??????????# = | | ???????????????????????#! ##??????????# | | ???????????????????????#% #???????????# | | ???????????????????????# %#???????????### # | | ???????????????????????# #?????????????# # | | ????????????????######## %#?????????????+ # | | ????????????????# #?????????????# #### | | ????????????????# #?????????????# #??? | | ????????????????# #?????????????# #??? | | ??????????#?????# ####;###??????????####+##+#### | | ??????????# ????# #??# ?????????????# / | | ??????????# ???# #???#?????????????# ]]] # | | ????####### ### ########??????????# ]]] # | | ???? # """ #??????????# ]] + | | ???? # """ #??????????# # | | ???? # "" #??????????#[ """ ## | | ?????#+########## %+ #??????????# ! """ ## | | ????????????????# =# [#########??# """ ## | | ????????????????# # +! #??############ | | ????????????????# ############## ############### | | ????????????????# #????????????# ] | +----------------------------------------------------+ Best States ------------- Heat Dissipation 45 Energy Generation 19 Energy Capacity 310 Matter Stores 300 Matter Capacity 300 Sight Range 16 Terrain Scan Density 10 ECM Strength 1 Evasion (%) 55 Targeting Accuracy 6 Offensive Hacking 10 Item Schematics ----------------- None Robot Schematics ------------------ None Fabricated ------------ Nothing Alien Tech Used ----------------- None Achievements -------------- None Challenges ------------ None Game ------ Seed CargoRegenerativeAutobeam Manual? 0 Play Time 00:14:23 Cumulative 26.2 hours Start 2024.12.01 @ 14:40:09 End 2024.12.01 @ 14:51:20 Sessions 1 Manual Loads 0 Difficulty Rogue Special Mode None Game No. 68 Rogue 68 Adventurer 0 Explorer 0 Win Type - Total 0 Types 0/0/0/0/0/0/0/0/0 Lore% 13 Gallery% 28 Achievement% 26 Wizard Run 0 Options --------- Layout 0 ASCII 0 Keyboard 1 Movement Numpad Keybinds 0 Fullscreen 1 Font 18/SmallcapsGlow Map View 76x50 Zoom Use 0% Tactical HUD 1 Map Filters NONE Filters NONE Steam 1 RUN: 3e7d2d41-7236-4269-af58-a44a50542d91